Workbook

Sheet مقاومت برشی دیوار
G2: 1TON=9806.6520482173 NEWTON
J3: 1.5 | K3: 0.08 | L3: yes
J4: 2 | K4: 0 | L4: no
N5: TON | O5: N
N7: 86.4689 | O7: =(N7*9806.6520482173)/1 -> 847970.4153
N11: Newton | O11: TON
N12: 2171040.12 | O12: =(N12*1)/9806.6520482173 -> 221.3844347
A14: روش دستی درست
B15: 25800 | C15: =C22 -> 5156.21 | D15: 5156.21 | E15: 400 | F15: 25 | G15: 400 | H15: 0.5 | I15: 2171040.12 | J15: =B15/C15 -> 5.00367518 | K15: =IF(J15<=1.5,0.25,IF(J15>=2,0.17,(J15-$J$3)/($J$4-$J$3)*($K$4-$K$3)+$K$3+0.17)) -> 0.17 | L15: =C15*E15 -> 2062484 | M15: =D15*E15 -> 2062484 | N15: =K15*H15*F15^0.5*L15 -> 876555.7 | O15: =IF((I15-N15)<0,0,I15-N15) -> 1294484.42 | P15: =MAX(0.0025,(O15/(H15*C15*E15*G15))) -> 0.003138168393 | Q15: =M15*((K15*F15^0.5)+(P15*G15)) -> 4342080.24 | R15: =H15*Q15 -> 2171040.12 | S15: =IF(I15<=H15*0.66*SQRT(F15)*M15,"ok","not ok") -> ok | T15: =IF(I15<=H15*0.83*SQRT(F15)*L15,"ok","not ok") -> ok | U15: =P15*(E15/10)*100 -> 12.55267357 | AC15: =(0.245-(0.08*J15))/0.5 -> -0.3105880288
I17: =(I15*1)/9806.6520482173 -> 221.3844347 | N17: =(N15*1)/9806.6520482173 -> 89.38378722 | O17: =(O15*1)/9806.6520482173 -> 132.0006475 | Q17: =(Q15*1)/9806.6520482173 -> 442.7688694 | R17: =(R15*1)/9806.6520482173 -> 221.3844347 | S17: =I17/S19 -> 0.6379598052 | T17: =I17/T19 -> 0.5072933391
S18: =(H15*0.66*SQRT(F15)*M15) -> 3403098.6 | T18: =(H15*0.83*SQRT(F15)*L15) -> 4279654.3
S19: =(S18*1)/9806.6520482173 -> 347.0194092 | T19: =(T18*1)/9806.6520482173 -> 436.4031964
A21: روش غلط ایتبس
B22: 3200 | C22: 5156.21 | D22: 5156.21 | E22: 400 | F22: 25 | G22: 400 | H22: 0.5 | I22: 2171059.29 | J22: =B22/C22 -> 0.620610875 | K22: =IF(J22<=1.5,0.25,IF(J22>=2,0.17,(J22-$J$3)/($J$4-$J$3)*($K$4-$K$3)+$K$3+0.17)) -> 0.25 | L22: =C22*E22 -> 2062484 | M22: =D22*E22 -> 2062484 | N22: =H22*K22*(SQRT(F22))*L22 -> 1289052.5 | O22: =IF((I22-N22)<0,0,I22-N22) -> 882006.79 | P22: =MAX(0.0025,(O22/(H22*C22*E22*G22))) -> 0.0025 | Q22: =M22*((K22*F22^0.5)+(P22*G22)) -> 4640589 | R22: =H22*Q22 -> 2320294.5 | S22: =IF(I22<=H22*0.66*SQRT(F22)*M22,"ok","not ok") -> ok | T22: =IF(I22<=H22*0.83*SQRT(F22)*L22,"ok","not ok") -> ok | U22: =P22*(E22/10)*100 -> 10 | AC22: =(0.245-(0.08*J22))/0.5 -> 0.39070226
I24: =(I22*1)/9806.6520482173 -> 221.3863895 | N24: =(N22*1)/9806.6520482173 -> 131.4467459 | O24: =(O22*1)/9806.6520482173 -> 89.93964359 | Q24: =(Q22*1)/9806.6520482173 -> 473.2082853 | R24: =(R22*1)/9806.6520482173 -> 236.6041426 | S24: =I24/S26 -> 0.6379654383 | T24: =I24/T26 -> 0.5072978184
S25: =(H22*0.66*SQRT(F22)*M22) -> 3403098.6 | T25: =(H22*0.83*SQRT(F22)*L22) -> 4279654.3
S26: =(S25*1)/9806.6520482173 -> 347.0194092 | T26: =(T25*1)/9806.6520482173 -> 436.4031964
A27: روش دیگر
B28: 10 | D28: =F22 -> 25 | E28: 40 | G28: =B30*E28*100 -> 14
A29: =K22-K15 -> 0.08 | B29: =SQRT(D28) -> 5 | C29: =G22 -> 400 | D29: =B28/(E28*100) -> 0.0025
B30: =D29+((A29*B29)/C29) -> 0.0035
G31: =MAX(D32,0.00028*D33*1000) -> 0
M43: yes
M44: no
